[Event "World Junior U20 Girls 2018"]
[Site "Gebze"]
[Date "2018.09.11"]
[Round "7"]
[White "Bai, Xue"]
[Black "Can, Isil"]
[Result "1/2-1/2"]
[ECO "C95"]
[WhiteElo "2073"]
[BlackElo "1798"]
[Annotator "NA"]
[PlyCount "100"]
[EventDate "2018.09.05"]
[EventType "swiss"]
[EventCountry "TUR"]
[SourceTitle "playchess.com"]
[Source "ChessBase"]
[SourceQuality "1"]
[TimeControl "40/5400+30:1800+30"]

1. e4 {[%emt 0:00:30]} e5 {[%emt 0:00:30]} 2. Nf3 {[%emt 0:00:30]} Nc6 {[%emt 0:00:30]} 3. Bb5 {[%emt 0:00:30]} a6 {[%emt 0:00:00]} 4. Ba4 {[%emt 0:00:00]} Nf6 {[%emt 0:00:00]} 5. O-O {[%emt 0:00:00]} Be7 {[%emt 0:00:30]} 6. Re1 {[%emt 0:00:00]} b5 {[%emt 0:00:00]} 7. Bb3 {[%emt 0:00:00]} d6 {[%emt 0:00:00]} 8. c3 {[%emt 0:00:00]} O-O {[%emt 0:00:00]} 9. h3 {[%emt 0:00:00]} Nb8 {[%emt 0:00:00]} 10. d4 {[%emt 0:00:30]} Nbd7 {[%emt 0:00:00]} 11. Bg5 {[%emt 0:00:30]} Bb7 {[%emt 0:00:00]} 12. Nbd2 {[%emt 0:00:30]} Re8 {[%emt 0:12:30] C95: Closed Ruy Lopez: Breyer Variation with 10 d4} 13. Bc2 {[%emt 0:07:30]} Bf8 {[%emt 0:00:30]} 14. Nf1 {[%emt 0:01:30]} h6 {[%emt 0:09:30] LiveBook: 66 Partien} 15. Bxf6 {[%emt 0:06:30]} (15. Bh4 exd4 16. cxd4 c5 17. N1d2 cxd4 18. Nxd4 Qb6 19. N4f3 Rac8 20. Rc1 g6 21. Bb1 Rxc1 22. Qxc1 Bg7 23. Qd1 {1-0 (61) Harikrishna,P (2744)-Amin,B (2689) Riadh 2017}) 15... Nxf6 {[%emt 0:00:30]} 16. Ng3 {[%emt 0:00:30]} g6 {[%emt 0:01:30]} 17. Qe2 $146 {[%emt 0:03:30]} ({Predecessor:} 17. b4 Qd7 18. a4 Bg7 19. axb5 axb5 20. Rxa8 Bxa8 21. Qa1 Qc6 {1-0 (59) Nemeth,B (1810)-Kiraly,B (1541) Fertoszentmiklos 2016}) 17... Bg7 {[%emt 0:00:30]} 18. Rad1 {[%emt 0:00:30]} Qe7 {[%emt 0:00:30]} 19. a4 {[%emt 0:01:30]} c6 {[%emt 0:00:30]} 20. dxe5 {[%emt 0:04:30]} dxe5 {[%emt 0:00:30]} 21. Rd2 {[%emt 0:00:30]} Rad8 {[%emt 0:09:30]} 22. Red1 {[%emt 0:00:00]} Nd7 {[%emt 0:01:30]} 23. Qe3 {[%emt 0:01:00]} Nf8 {[%emt 0:03:30]} 24. Qb6 {[%emt 0:16:30]} Ne6 {[%emt 0:04:30]} 25. b4 {[%emt 0:06:30]} Rxd2 {[%emt 0:03:30]} 26. Rxd2 {[%emt 0:07:30]} Rd8 {[%emt 0:00:30]} 27. Bb3 {[%emt 0:00:30]} Rxd2 {[%emt 0:00:30]} 28. Nxd2 {[%emt 0:00:30]} Qc7 {[%emt 0:00:30]} 29. Qe3 {[%emt 0:00:30]} Bc8 {[%emt 0:13:30]} 30. Ne2 {[%emt 0:03:30]} bxa4 {[%emt 0:06:30]} 31. Bxa4 {[%emt 0:00:30]} c5 {[%emt 0:00:00]} 32. Kh2 {[%emt 0:09:30]} Bf8 {[%emt 0:06:00]} 33. bxc5 {[%emt 0:06:30]} Nxc5 {[%emt 0:00:30]} 34. Bc2 {[%emt 0:00:30]} Be6 {[%emt 0:00:30]} 35. c4 {[%emt 0:00:30]} a5 {[%emt 0:00:30]} 36. Nc3 {[%emt 0:00:30]} Kg7 {[%emt 0:05:30]} 37. Nb5 {[%emt 0:00:30]} Qc6 {[%emt 0:00:30]} 38. Qc3 {[%emt 0:00:00]} a4 {[%emt 0:02:30]} 39. Qxe5+ {[%emt 0:01:00]} Kh7 {[%emt 0:00:30]} 40. Qc3 {[%emt 0:00:00]} Qa6 {[%emt 0:00:00]} 41. f4 $11 {[%emt 0:02:00]} Bd7 {[%emt 0:05:00]} 42. f5 {[%emt 0:02:30]} Bxb5 {[%emt 0:03:30]} 43. cxb5 {[%emt 0:00:30]} Qxb5 {[%emt 0:00:30]} 44. Qf6 {[%emt 0:00:30]} Qe8 {[%emt 0:00:00]} 45. Qc3 {[%emt 0:04:30]} Bd6+ {[%emt 0:05:00]} 46. g3 {[%emt 0:02:30]} Qe5 {[%emt 0:03:30]} 47. Nb1 {[%emt 0:17:30]} Qxc3 {[%emt 0:07:30]} 48. Nxc3 {[%emt 0:00:30]} a3 {[%emt 0:00:30]} 49. Kg2 {[%emt 0:00:30]} Na6 {[%emt 0:01:30]} 50. Bb3 {[%emt 0:00:30]} gxf5 {[%emt 0:00:30]} 1/2-1/2

[Event "World Junior U20 Girls 2018"]
[Site "Gebze"]
[Date "2018.09.11"]
[Round "7"]
[White "Li, Yunshan"]
[Black "Du, Yuxin"]
[Result "1-0"]
[ECO "E01"]
[WhiteElo "2060"]
[BlackElo "2146"]
[Annotator "ChessBase"]
[PlyCount "117"]
[EventDate "2018.09.05"]
[EventType "swiss"]
[EventCountry "TUR"]
[SourceTitle "playchess.com"]
[Source "ChessBase"]
[SourceQuality "1"]
[TimeControl "40/5400+30:1800+30"]

1. d4 {[%emt 0:00:30]} Nf6 {[%emt 0:00:30]} 2. c4 {[%emt 0:00:00]} e6 {[%emt 0:00:30]} 3. g3 {[%emt 0:00:00]} c5 {[%emt 0:00:30]} 4. Nf3 {[%emt 0:00:30]} cxd4 {[%emt 0:00:30]} 5. Nxd4 {[%emt 0:00:30]} d5 {[%emt 0:00:00]} 6. Bg2 {[%emt 0:00:00]} e5 {[%emt 0:01:00]} 7. Nb3 {[%emt 0:00:00]} d4 {[%emt 0:00:30]} 8. O-O {[%emt 0:00:30]} Nc6 {[%emt 0:01:30]} 9. Bg5 {[%emt 0:00:30]} Be7 {[%emt 0:09:30]} 10. e3 {[%emt 0:00:30]} dxe3 {[%emt 0:43:30]} 11. Qxd8+ {[%emt 0:05:30]} Nxd8 {[%emt 0:03:30]} 12. Bxe3 {[%emt 0:00:30]} Be6 {[%emt 0:22:49]} 13. Na5 {[%emt 0:10:30]} O-O {[%emt 0:00:37]} 14. Nc3 {[%emt 0:04:30]} Bb4 {[%emt 0:02:19]} 15. Nxb7 {[%emt 0:00:30]} Bxc4 {[%emt 0:00:30]} 16. Rfc1 {[%emt 0:00:30]} Nxb7 {[%emt 0:00:30]} 17. Bxb7 {[%emt 0:00:30]} Rab8 {[%emt 0:00:30]} 18. Bg2 {[%emt 0:00:30]} a5 {[%emt 0:05:23]} 19. Ne4 {[%emt 0:20:30]} Nxe4 {[%emt 0:00:24]} 20. Rxc4 {[%emt 0:00:30]} Nd6 {[%emt 0:00:33]} 21. Rc6 {[%emt 0:01:30]} Nf5 {[%emt 0:01:31]} 22. Ba7 {[%emt 0:01:30]} Rbc8 {[%emt 0:01:45]} 23. Ra6 {[%emt 0:05:30]} g6 {[%emt 0:01:37]} 24. Bb6 {[%emt 0:13:30]} Rc2 {[%emt 0:00:48]} 25. Bxa5 {[%emt 0:01:30]} Bxa5 {[%emt 0:01:18]} 26. Rxa5 {[%emt 0:00:30]} Rd8 {[%emt 0:00:19]} 27. Ra8 {[%emt 0:04:30]} Rxa8 {[%emt 0:00:30]} 28. Bxa8 {[%emt 0:00:30]} Rxb2 {[%emt 0:00:00]} 29. a4 {[%emt 0:00:30]} Nd4 {[%emt 0:00:36]} 30. a5 {[%emt 0:00:30]} Nb5 {[%emt 0:00:45]} 31. a6 {[%emt 0:00:30]} Na7 {[%emt 0:00:34]} 32. Ra5 {[%emt 0:08:30]} Rb6 {[%emt 0:00:32]} 33. Bb7 {[%emt 0:00:30]} f6 {[%emt 0:00:29]} 34. Rd5 {[%emt 0:00:30]} Kg7 {[%emt 0:00:34]} 35. Rd8 {[%emt 0:00:30]} Kh6 {[%emt 0:00:32]} 36. h4 {[%emt 0:01:57]} Nb5 {[%emt 0:00:26]} 37. Rd5 {[%emt 0:00:23]} Na7 {[%emt 0:00:31]} 38. Kf1 {[%emt 0:04:54]} Rb1+ {[%emt 0:00:48]} 39. Ke2 {[%emt 0:00:11]} Rb2+ {[%emt 0:00:05]} 40. Rd2 {[%emt 0:00:00]} Rb6 {[%emt 0:00:00]} 41. Kd3 {[%emt 0:03:35]} g5 {[%emt 0:14:11]} 42. hxg5+ {[%emt 0:04:30]} Kxg5 {[%emt 0:00:09]} 43. Kc3 {[%emt 0:10:30]} f5 {[%emt 0:08:36]} 44. Rb2 {[%emt 0:02:30]} Rf6 {[%emt 0:05:00]} 45. Kc4 {[%emt 0:01:30]} f4 {[%emt 0:00:33]} 46. gxf4+ {[%emt 0:00:30]} exf4 {[%emt 0:00:23]} 47. Kc5 {[%emt 0:02:30]} h5 {[%emt 0:01:31]} 48. Rd2 {[%emt 0:02:30]} h4 {[%emt 0:02:40]} 49. Rd8 {[%emt 0:05:51]} h3 {[%emt 0:01:44]} 50. Rg8+ {[%emt 0:00:39]} Kf5 {[%emt 0:00:33]} 51. Ra8 {[%emt 0:01:15]} Rf7 {[%emt 0:00:47]} 52. Rxa7 {[%emt 0:02:07]} h2 {[%emt 0:00:24]} 53. Ra8 {[%emt 0:00:46]} Rxb7 {[%emt 0:00:30]} 54. axb7 {[%emt 0:02:47]} h1=Q {[%emt 0:00:08]} 55. b8=Q {[%emt 0:00:17]} Qc1+ {[%emt 0:00:21]} 56. Kd6 {[%emt 0:00:26]} Qd2+ {[%emt 0:00:57]} 57. Ke7 {[%emt 0:00:11]} Qe2+ {[%emt 0:00:33]} 58. Kf8 {[%emt 0:00:09]} Qxf2 {[%emt 0:00:28]} 59. Qc8+ {[%emt 0:02:49]} 1-0

[Event "World Junior U20 Girls 2018"]
[Site "Gebze"]
[Date "2018.09.11"]
[Round "7"]
[White "Malatsilava, Volha"]
[Black "Hereklioglu, Sude"]
[Result "1-0"]
[ECO "B47"]
[WhiteElo "2040"]
[BlackElo "1930"]
[Annotator "NA"]
[PlyCount "67"]
[EventDate "2018.09.05"]
[EventType "swiss"]
[EventCountry "TUR"]
[SourceTitle "playchess.com"]
[Source "ChessBase"]
[SourceQuality "1"]
[TimeControl "40/5400+30:1800+30"]

1. e4 {[%emt 0:00:30]} c5 {[%emt 0:00:30]} 2. Nf3 {[%emt 0:00:30]} e6 {[%emt 0:00:00]} 3. d4 {[%emt 0:00:00]} cxd4 {[%emt 0:00:00]} 4. Nxd4 {[%emt 0:00:00]} Nc6 {[%emt 0:00:00]} 5. Nc3 {[%emt 0:00:00]} Qc7 {[%emt 0:00:00]} 6. Be2 {[%emt 0:00:00]} a6 {[%emt 0:00:30]} 7. O-O {[%emt 0:00:00]} b5 {[%emt 0:01:30]} 8. Nxc6 {[%emt 0:00:00]} dxc6 {[%emt 0:01:30]} 9. Be3 {[%emt 1:33:30]} Bb7 {[%emt 0:15:30]} 10. f4 {[%emt 0:00:00]} Rd8 {[%emt 0:16:30]} 11. Qe1 {[%emt 0:00:00]} Nf6 {[%emt 0:00:30]} 12. Bf3 {[%emt 0:00:00]} c5 {[%emt 0:14:30]} 13. e5 {[%emt 0:00:00] LiveBook: 4 Games} Nd5 {[%emt 0:04:30]} 14. Nxd5 {[%emt 0:00:00]} Bxd5 {[%emt 0:01:30]} 15. Bxd5 {[%emt 0:00:00]} Rxd5 {[%emt 0:00:30]} 16. c4 {[%emt 0:00:00]} Rd8 {[%emt 0:06:30]} 17. Qf2 $11 {[%emt 0:00:00]} Be7 {[%emt 0:07:30]} 18. cxb5 {[%emt 0:00:00]} axb5 {[%emt 0:01:30]} 19. b4 {[%emt 0:00:00]} Rd5 {[%emt 0:07:22]} 20. bxc5 {[%emt 0:00:00]} Bxc5 {[%emt 0:01:26]} 21. Rac1 {[%emt 0:00:00]} Bxe3 {[%emt 0:00:02]} 22. Qxe3 {[%emt 0:00:00]} Qd8 {[%emt 0:02:00]} 23. Qa3 {[%emt 0:00:00]} h5 {[%emt 0:07:39]} 24. Qb4 {[%emt 0:00:00]} h4 {[%emt 0:02:10]} 25. h3 {[%emt 0:00:00]} Rh6 {[%emt 0:05:56]} 26. Rc6 {[%emt 0:00:00]} Rg6 {[%emt 0:00:13]} 27. Rd6 {[%emt 0:01:20]} Qa8 {[%emt 0:01:32]} 28. Rf2 {[%emt 0:00:40]} Rg3 {[%emt 0:00:50]} 29. Rd2 {[%emt 0:04:02]} Qb7 {[%emt 0:00:24]} 30. Qa5 {[%emt 0:01:05]} Rxd6 {[%emt 0:00:44]} 31. exd6 {[%emt 0:00:10]} Kd7 {[%emt 0:00:00]} 32. Rc2 {[%emt 0:00:36]} Ke8 {[%emt 0:01:45]} 33. Qc7 {[%emt 0:00:15]} Qxc7 {[%emt 0:00:28]} 34. dxc7 {[%emt 0:00:05]} 1-0

[Event "World Junior U20 Girls 2018"]
[Site "Gebze"]
[Date "2018.09.11"]
[Round "7"]
[White "Gomez Barrera, Javiera Belen"]
[Black "Koo, Wei Xin Rosamund"]
[Result "1-0"]
[ECO "B34"]
[WhiteElo "2035"]
[BlackElo "1918"]
[Annotator "NA"]
[PlyCount "91"]
[EventDate "2018.09.05"]
[EventType "swiss"]
[EventCountry "TUR"]
[SourceTitle "playchess.com"]
[Source "ChessBase"]
[SourceQuality "1"]
[TimeControl "40/5400+30:1800+30"]

1. e4 {[%emt 0:00:30]} c5 {[%emt 0:00:30]} 2. Nf3 {[%emt 0:00:30]} Nc6 {[%emt 0:00:00]} 3. d4 {[%emt 0:00:00]} cxd4 {[%emt 0:00:00]} 4. Nxd4 {[%emt 0:00:00]} Nf6 {[%emt 0:00:00]} 5. Nc3 {[%emt 0:00:00]} g6 {[%emt 0:00:00]} 6. Nxc6 {[%emt 0:00:00]} bxc6 {[%emt 0:01:30]} 7. e5 {[%emt 0:00:30]} Ng8 {[%emt 0:01:30]} 8. Bc4 {[%emt 0:00:00]} Bg7 {[%emt 0:04:30]} 9. Bf4 {[%emt 0:02:00]} Qa5 {[%emt 0:12:30]} 10. Qf3 {[%emt 0:03:30]} e6 {[%emt 0:12:30]} 11. O-O {[%emt 0:29:30]} Bxe5 {[%emt 0:02:30]} 12. b4 {[%emt 0:03:30]} Qc7 {[%emt 0:07:30]} 13. Nb5 {[%emt 0:01:30]} Qb8 {[%emt 0:00:00]} 14. Bxe5 {[%emt 0:00:30]} Qxe5 {[%emt 0:00:00]} 15. Rfe1 {[%emt 0:00:30]} Qb8 $16 {[%emt 0:05:30]} 16. Rad1 {[%emt 0:20:30]} d5 {[%emt 0:06:30]} 17. Bxd5 {[%emt 0:21:45]} cxd5 {[%emt 0:04:30]} 18. Qxd5 {[%emt 0:00:30]} Kf8 {[%emt 0:00:30]} 19. Qc5+ {[%emt 0:00:30]} Kg7 {[%emt 0:00:30]} 20. Nc7 {[%emt 0:00:30]} Nf6 {[%emt 0:00:30]} 21. Nxa8 {[%emt 0:00:30]} Qxa8 {[%emt 0:00:30]} 22. Qe5 {[%emt 0:00:30]} Qc6 {[%emt 0:00:30]} 23. Rd3 {[%emt 0:11:31]} Qb6 {[%emt 0:13:30]} 24. Rf3 {[%emt 0:01:39]} Qd8 {[%emt 0:00:00]} 25. c4 {[%emt 0:01:02]} Bb7 {[%emt 0:01:00]} 26. Rf4 {[%emt 0:00:01]} h5 {[%emt 0:00:30]} 27. h4 {[%emt 0:00:21]} Qe7 {[%emt 0:02:30]} 28. f3 {[%emt 0:01:25]} Qd8 {[%emt 0:04:30]} 29. Rf1 {[%emt 0:01:08]} Rh6 {[%emt 0:00:30]} 30. b5 {[%emt 0:00:00]} Rh8 {[%emt 0:00:51]} 31. a4 {[%emt 0:00:22]} Rh6 {[%emt 0:00:45]} 32. a5 {[%emt 0:00:24]} a6 {[%emt 0:00:34]} 33. Rb1 {[%emt 0:00:48]} Rh8 {[%emt 0:01:09]} 34. bxa6 {[%emt 0:00:28]} Ba8 {[%emt 0:01:09]} 35. a7 {[%emt 0:00:23]} Qe7 {[%emt 0:00:26]} 36. Kh2 {[%emt 0:00:37]} Bc6 {[%emt 0:02:08]} 37. Rb8 {[%emt 0:00:15]} Rd8 {[%emt 0:00:00]} 38. Qxf6+ {[%emt 0:00:47]} Qxf6 {[%emt 0:00:46]} 39. Rxf6 {[%emt 0:00:03]} Rd4 {[%emt 0:00:00]} 40. Rc8 {[%emt 0:00:00]} Kxf6 {[%emt 0:00:00]} 41. Rxc6 {[%emt 0:02:01]} Rd8 {[%emt 0:01:12]} 42. Rc7 {[%emt 0:00:30]} Ra8 {[%emt 0:00:30]} 43. c5 {[%emt 0:00:30]} e5 {[%emt 0:00:00]} 44. c6 {[%emt 0:03:30]} Ke6 {[%emt 0:00:00]} 45. Rb7 {[%emt 0:00:30]} Kd6 {[%emt 0:00:30]} 46. c7 {[%emt 0:00:30]} 1-0

[Event "World Junior U20 Girls 2018"]
[Site "Gebze"]
[Date "2018.09.11"]
[Round "7"]
[White "Caballero Quijano, Mitzy Mishell"]
[Black "Gur, Tuba"]
[Result "1-0"]
[ECO "E01"]
[WhiteElo "2034"]
[BlackElo "1724"]
[Annotator "NA"]
[PlyCount "89"]
[EventDate "2018.09.05"]
[EventType "swiss"]
[EventCountry "TUR"]
[SourceTitle "playchess.com"]
[Source "ChessBase"]
[SourceQuality "1"]
[TimeControl "40/5400+30:1800+30"]

1. d4 {[%emt 0:00:30]} d5 {[%emt 0:00:30]} 2. Nf3 {[%emt 0:00:00]} e6 {[%emt 0:00:30]} 3. c4 {[%emt 0:00:00]} Nf6 {[%emt 0:00:30]} 4. g3 {[%emt 0:00:00]} c6 {[%emt 0:01:30]} 5. Bg2 {[%emt 0:00:00]} Bd6 {[%emt 0:01:30]} 6. O-O {[%emt 0:00:30]} Nbd7 {[%emt 0:00:30]} 7. Qc2 {[%emt 0:00:30]} O-O {[%emt 0:00:30]} 8. Nfd2 {[%emt 0:01:30] E01: Catalan: Early deviations} e5 {[%emt 0:02:30]} 9. cxd5 {[%emt 0:01:30]} cxd5 {[%emt 0:01:30]} 10. Nc3 $146 {[%emt 0:01:30]} ({Predecessor:} 10. dxe5 Nxe5 11. Nc3 Bg4 12. Nb3 Qc8 13. Bf4 Bh3 14. Rfd1 Bxg2 15. Kxg2 Rd8 {1-0 (23) Fominyh,A (2520)-Akselrod,V (2437) Tomsk 2003}) 10... e4 {[%emt 0:06:30]} 11. f3 {[%emt 0:02:30]} exf3 {[%emt 0:03:30]} 12. exf3 {[%emt 0:00:00]} Re8 {[%emt 0:02:30]} 13. Rd1 {[%emt 0:03:00]} Nb6 {[%emt 0:06:30]} 14. Nf1 {[%emt 0:01:30]} Bd7 {[%emt 0:02:30]} 15. Qb3 {[%emt 0:00:30]} Rc8 {[%emt 0:05:30]} 16. Bg5 {[%emt 0:01:30]} Be7 {[%emt 0:09:30]} 17. a4 {[%emt 0:09:30]} Be6 {[%emt 0:04:30]} 18. f4 {[%emt 0:05:30]} Ne4 {[%emt 0:11:30]} (18... Nc4 $1 $15) 19. Bxe7 {[%emt 0:09:30]} Qxe7 {[%emt 0:00:30]} 20. Nb5 {[%emt 0:00:30]} Rc4 {[%emt 0:05:30]} 21. Ne3 {[%emt 0:04:30]} Rb4 {[%emt 0:00:30]} 22. Qa3 {[%emt 0:00:30]} Rxa4 {[%emt 0:07:30]} 23. Qxe7 {[%emt 0:07:30]} Rxe7 $18 {[%emt 0:00:30]} 24. Rxa4 {[%emt 0:02:30]} Nxa4 {[%emt 0:00:30]} 25. f5 {[%emt 0:00:00]} Bd7 {[%emt 0:03:30]} 26. Nxd5 {[%emt 0:00:00]} Re8 {[%emt 0:01:30]} 27. Nbc7 {[%emt 0:01:30]} Nd6 {[%emt 0:02:27]} 28. Nxe8 {[%emt 0:00:30]} Nxe8 {[%emt 0:01:23]} 29. Ra1 {[%emt 0:03:30]} Nxb2 {[%emt 0:05:38]} 30. Rxa7 {[%emt 0:00:30]} Nd6 {[%emt 0:06:09]} 31. Ra8+ {[%emt 0:00:30]} Ne8 {[%emt 0:01:31]} 32. Nc7 {[%emt 0:00:30]} Kf8 {[%emt 0:00:00]} 33. Bxb7 {[%emt 0:00:30]} Ke7 {[%emt 0:00:00]} 34. Nxe8 {[%emt 0:00:30]} Bxe8 {[%emt 0:00:04]} 35. Kf2 {[%emt 0:02:30]} Nc4 {[%emt 0:00:32]} 36. g4 {[%emt 0:00:30]} Nd6 {[%emt 0:00:11]} 37. Bd5 {[%emt 0:00:30]} g6 {[%emt 0:00:30]} 38. Ra7+ {[%emt 0:00:30]} Kf6 {[%emt 0:00:30]} 39. Ra6 {[%emt 0:00:00]} Ke7 {[%emt 0:00:05]} 40. f6+ {[%emt 0:00:00]} Kd7 {[%emt 0:00:00]} 41. Bc6+ {[%emt 0:00:30]} Kc7 {[%emt 0:01:30]} 42. Bxe8 {[%emt 0:00:30]} Nxe8 {[%emt 0:00:30]} 43. Ra7+ {[%emt 0:00:00]} Kd6 {[%emt 0:00:00]} 44. Rxf7 {[%emt 0:00:00]} Ke6 {[%emt 0:01:00]} 45. Re7+ {[%emt 0:00:30]} 1-0

[Event "World Junior U20 Girls 2018"]
[Site "Gebze"]
[Date "2018.09.11"]
[Round "7"]
[White "Yang, Yijing"]
[Black "Chu, Ruotong"]
[Result "1/2-1/2"]
[ECO "A38"]
[WhiteElo "2018"]
[BlackElo "2199"]
[Annotator "NA"]
[PlyCount "67"]
[EventDate "2018.09.05"]
[EventType "swiss"]
[EventCountry "TUR"]
[SourceTitle "playchess.com"]
[Source "ChessBase"]
[SourceQuality "1"]
[TimeControl "40/5400+30:1800+30"]

1. Nf3 {[%emt 0:00:30]} Nf6 {[%emt 0:01:30]} 2. c4 {[%emt 0:00:00]} g6 {[%emt 0:16:30]} 3. b3 {[%emt 0:02:00]} Bg7 {[%emt 0:05:30]} 4. Bb2 {[%emt 0:00:30]} c5 {[%emt 0:00:00]} 5. g3 {[%emt 0:00:00]} d6 {[%emt 0:00:00]} 6. Bg2 {[%emt 0:00:00]} e5 {[%emt 0:00:30]} 7. O-O {[%emt 0:00:30]} Nc6 {[%emt 0:00:00]} 8. Nc3 {[%emt 0:00:00]} O-O {[%emt 0:01:00]} 9. d3 {[%emt 0:00:00]} Rb8 {[%emt 0:04:30]} 10. e3 {[%emt 0:01:30] A38: Symmetrical English vs ...g6: 4 Bg2 Bg7 5 Nf3 Nf6} (10. Nd2 a6 11. a3 Bg4 12. h3 Bd7 13. b4 cxb4 14. axb4 Nxb4 15. Ba3 a5 16. Rb1 b5 17. Nxb5 d5 {½-½ (30) Artemiev,V (2691)-Grischuk,A (2772) Huaian 2017}) 10... Be6 {[%emt 0:09:30]} 11. Ng5 $146 {[%emt 0:14:30]} ({Predecessor:} 11. d4 cxd4 12. exd4 exd4 13. Nxd4 Nxd4 14. Qxd4 Nd5 15. Qd2 Nxc3 16. Bxc3 Bxc3 17. Qxc3 b5 18. cxb5 Rxb5 {½-½ (36) Schulz,K (2246)-Korolev,A (2071) Bamberg 2018}) 11... Bg4 {[%emt 0:02:30]} 12. Qd2 {[%emt 0:02:30]} h6 {[%emt 0:03:30]} 13. Nge4 {[%emt 0:00:30]} Qd7 {[%emt 0:04:30]} 14. Nxf6+ {[%emt 0:01:30]} Bxf6 {[%emt 0:00:30]} 15. Nd5 {[%emt 0:00:30]} Bg7 {[%emt 0:01:30]} 16. Rab1 {[%emt 0:15:30]} Ne7 {[%emt 0:03:30]} 17. f4 {[%emt 0:14:30]} Nxd5 {[%emt 0:02:30]} 18. Bxd5 {[%emt 0:00:30]} Be6 {[%emt 0:00:30]} 19. Bxe6 {[%emt 0:00:30]} Qxe6 {[%emt 0:00:30]} 20. d4 {[%emt 0:00:30]} exd4 {[%emt 0:00:30]} 21. exd4 {[%emt 0:00:30]} Qf5 {[%emt 0:00:30]} 22. d5 {[%emt 0:00:30]} Bxb2 {[%emt 0:07:30]} 23. Rxb2 {[%emt 0:05:30]} b5 {[%emt 0:08:30]} 24. Re1 {[%emt 0:07:30]} Qf6 {[%emt 0:04:30]} 25. Rc2 {[%emt 0:02:30]} a6 {[%emt 0:04:08]} 26. Qc3 $11 {[%emt 0:04:30]} Qxc3 {[%emt 0:02:17]} 27. Rxc3 {[%emt 0:00:00]} Rfe8 {[%emt 0:00:00]} 28. Rce3 {[%emt 0:02:00]} Rxe3 {[%emt 0:00:30]} 29. Rxe3 {[%emt 0:01:30]} Kf8 {[%emt 0:04:54]} 30. Kf2 {[%emt 0:02:30]} bxc4 {[%emt 0:01:53]} 31. bxc4 {[%emt 0:00:30]} Rb2+ {[%emt 0:00:00]} 32. Re2 {[%emt 0:00:00]} Rxe2+ {[%emt 0:05:18]} 33. Kxe2 {[%emt 0:00:00]} Ke7 {[%emt 0:00:30]} 34. Kd3 {[%emt 0:00:30]} 1/2-1/2

[Event "World Junior U20 Girls 2018"]
[Site "Gebze"]
[Date "2018.09.11"]
[Round "7"]
[White "Celik, Eylul"]
[Black "Doroy Allaney Jia G"]
[Result "0-1"]
[ECO "B27"]
[WhiteElo "2014"]
[BlackElo "1914"]
[Annotator "NA"]
[PlyCount "70"]
[EventDate "2018.09.05"]
[EventType "swiss"]
[EventCountry "TUR"]
[SourceTitle "playchess.com"]
[Source "ChessBase"]
[SourceQuality "1"]
[TimeControl "40/5400+30:1800+30"]

1. d4 {[%emt 0:00:30]} g6 {[%emt 0:00:30]} 2. e4 {[%emt 0:00:30]} Bg7 {[%emt 0:00:00]} 3. Nf3 {[%emt 0:00:00]} c5 {[%emt 0:01:00]} 4. dxc5 {[%emt 0:01:00]} Qa5+ {[%emt 0:00:30]} 5. c3 {[%emt 0:00:30]} Qxc5 {[%emt 0:00:30]} 6. Na3 {[%emt 0:02:30] B27: Sicilian: 2 Nf3, unusual Black 2nd moves} Nf6 {[%emt 0:15:30]} 7. Nb5 {[%emt 0:02:30]} (7. Be3 Qa5 8. Nc4 Qc7 9. e5 Ng4 10. Bf4 b5 11. Ne3 Nxe3 12. fxe3 e6 13. Bxb5 Qb6 {½-½ (32) Nepomniachtchi,I (2705)-Guseinov,G (2649) Ashdod 2015}) 7... Qb6 {[%emt 0:10:30] LiveBook: 3 Games} ({Better is} 7... b6) 8. Be3 {[%emt 0:07:30]} Qd8 {[%emt 0:00:30]} 9. Bc4 $146 {[%emt 0:19:30]} ({Predecessor:} 9. Bf4 O-O 10. Bc7 Qe8 11. e5 Nh5 12. g4 Nf4 13. Qa4 Ne6 14. Bxb8 Rxb8 15. Qxa7 {½-½ (32) Satyapragyan,S (2397)-Savchenko,B (2534) Pardubice 2005}) 9... O-O {[%emt 0:05:30]} 10. Qc2 {[%emt 0:04:30]} Nc6 {[%emt 0:01:30]} 11. h3 {[%emt 0:01:30]} d6 {[%emt 0:01:30]} 12. O-O {[%emt 0:00:30]} Bd7 {[%emt 0:00:30]} 13. Rad1 {[%emt 0:09:30]} Rc8 {[%emt 0:02:30]} 14. Qb1 {[%emt 0:07:30]} a6 {[%emt 0:12:30]} 15. Na3 {[%emt 0:00:30]} Qc7 {[%emt 0:00:30]} 16. Be2 {[%emt 0:00:30]} b5 {[%emt 0:00:30]} 17. Nd4 {[%emt 0:09:30]} Qb7 {[%emt 0:06:30]} 18. f3 {[%emt 0:03:30]} Rfd8 $11 {[%emt 0:10:30]} 19. c4 {[%emt 0:05:30]} b4 {[%emt 0:07:30]} 20. Nac2 {[%emt 0:02:30]} Ne8 {[%emt 0:01:46]} 21. Nxc6 {[%emt 0:02:59]} Bxc6 {[%emt 0:00:20]} 22. Nd4 {[%emt 0:00:41]} Bd7 {[%emt 0:01:33]} 23. Rc1 {[%emt 0:05:55]} Nc7 {[%emt 0:02:02]} 24. Nb3 {[%emt 0:02:39]} Ne6 {[%emt 0:01:07]} 25. Rfd1 {[%emt 0:02:18]} Be5 {[%emt 0:03:35]} 26. Bf2 {[%emt 0:04:14]} Ba4 {[%emt 0:03:59]} 27. c5 {[%emt 0:02:19]} dxc5 {[%emt 0:04:11]} 28. Rxd8+ {[%emt 0:01:18]} Rxd8 {[%emt 0:00:14]} 29. Bxc5 {[%emt 0:01:21]} Bxb3 {[%emt 0:00:54]} 30. Bxe7 {[%emt 0:00:38]} Qxe7 {[%emt 0:01:16]} 31. axb3 {[%emt 0:00:04]} Rd2 {[%emt 0:00:38]} 32. Rc2 {[%emt 0:00:07]} Qa7+ {[%emt 0:00:59]} 33. Kf1 {[%emt 0:00:37]} Qe3 {[%emt 0:00:39]} 34. Rxd2 {[%emt 0:00:30]} Qxd2 {[%emt 0:00:12]} 35. Bxa6 {[%emt 0:00:03]} Nf4 {[%emt 0:01:38]} 0-1